{"text_format":"1","workbook":"xlsx","n_sheets":2,"sheets":["Kurswahlbogen","Hilfe zum Ausfüllen"],"not_rendered":{"charts":0,"images":7,"macros":1,"external_links":0,"defined_names":2,"comments":0,"pivot_tables":0},"unopened":[],"bounds":{"document_bytes":16777216,"sheet_cells":100000,"rows_first":2000,"rows_last":500,"rows_between":2000,"halvings":0,"cell_chars":16384,"cell_head_chars":4096},"cells_cut":0,"cells_raw":0,"read":"whole","date_system":"1900"}

{"sheet":"Kurswahlbogen","index":0,"n_rows":55,"n_cols":12,"rows_kept":55,"cut":false,"hidden":false,"merged":[[54,7,54,8],[8,4,9,5],[8,8,9,8],[5,6,5,7],[6,6,6,7],[13,0,23,0],[24,0,29,0],[30,0,35,0],[49,0,49,1],[54,1,54,2],[38,0,48,0],[11,0,12,0],[11,1,12,1],[11,2,12,2],[11,3,12,3],[0,0,0,8],[11,4,11,7],[11,8,12,8],[4,6,4,8],[4,0,4,1],[4,4,4,5],[5,4,5,5],[6,4,6,5],[7,6,7,7],[1,6,1,7]]}
["Kurswahlbogen für J1 und J2, Abiturjahr 2021"]
[null,null,null,null,null,null,"Status Kurswahl:",null,"OK"]
["Allgemein bildendes Gymnasium Baden Württemberg",null,null,null,null,null,null,null,null,null,"B","W"]
[]
["Prüfungsfächer",null,null,null,"Name, Vorname, geb."]
["1. (L)","Deutsch","s",null,"Klasse /KG, Tutor",null,null,null,null,null,"m"]
["2. (L)","Englisch","s",null,"Sprachenfolge, Profil",null,null,null,null,null,"s"]
["3. (L)","Musik","s",null,"Konfes.",null,"Sch.-ID:",null,null,null,"Ergebnis:"]
["4. (B)","Religionslehre","m**",null,"Wechsel von Religion/Ethik ",null,"nein","ja","Abmeldung am:",null,"3 schriftliche Prüfungsfächer gewählt!"]
["5. (B)","Mathematik","m",null,null,null,null,null,null,null,"2 mündliche Prüfungsfächer gewählt!"]
[null,null,null,null,null,null,null,null,null,null,"Richtige Wahl zur Abiturprüfung"]
["Aufgabenfelder","Fächer"," (L/B)","Prüfung (s/m)","Wochenstunden in den Kursen",null,null,null,"Zahl der Kurse",null,"Mindestens 42 Kurse belegt"]
[null,null,null,null,"J1.1","J1.2","J2.1","J2.2",null,null,"Belegpflicht erfüllt!"]
["AF I            sprachllich-literarisch-künstlerisch","Deutsch","L","s",5,5,5,5,{"$f":"IF(E14<>\"\",COUNTA(E14:H14),IF(F14<>\"\",COUNTA(E14:H14),IF(G14<>\"\",COUNTA(E14:H14),IF(H14<>\"\",COUNTA(E14:H14),\"\"))))","v":4},null,"2 NW und 1 FS oder 1 NW und 2 FS gewählt"]
[null,"Englisch","L","s",5,5,5,5,{"$f":"IF(E15<>\"\",COUNTA(E15:H15),IF(F15<>\"\",COUNTA(E15:H15),IF(G15<>\"\",COUNTA(E15:H15),IF(H15<>\"\",COUNTA(E15:H15),\"\"))))","v":4},null,"anzurechnende Kurse: 36"]
[null,"Französisch",null,null,null,null,null,null,""]
[null,"Latein",null,null,null,null,null,null,""]
[null,"Griechisch",null,null,null,null,null,null,""]
[null,"Russisch",null,null,null,null,null,null,""]
[null,"Spanisch",null,null,null,null,null,null,""]
[null,"Italienisch","B",null,3,3,3,3,4]
[null,"Portugiesisch",null,null,null,null,null,null,""]
[null,"Bildende Kunst",null,null,null,null,null,null,""]
[null,"Musik","L","s",5,5,5,5,4]
["AF II            gesell-schaftswis-senschaftlich","Geschichte","B",null,2,2,2,2,4]
[null,"Geographie","B",null,null,2,2,null,2]
[null,"Gemeinschaftskunde","B",null,2,null,null,2,2]
[null,"Religionslehre","B","m",2,2,2,2,4]
[null,"Ethik",null,null,null,null,null,null,""]
[null,"Wirtschaft",null,null,null,null,null,null,""]
["AF III         mathematisch-naturwissen-schaftlich-technisch","Mathematik","B","m",3,3,3,3,4]
[null,"Biologie","B",null,3,3,3,3,4]
[null,"Chemie",null,null,null,null,null,null,""]
[null,"Physik",null,null,null,null,null,null,""]
[null,null,null,null,null,null,null,null,""]
[null,null,null,null,null,null,null,null,""]
[null,"Sport","B",null,2,2,2,2,4]
["AF (*)","Besondere Lernleistung"]
["Wahlbereich","Literatur und Theater",null,null,null,null,null,null,""]
[null,"VK Mathematik",null,null,null,null,null,null,""]
[null,"VK Sprache",null,null,null,null,null,null,""]
[null,"Informatik",null,null,null,null,null,null,""]
[null,"Literatur",null,null,null,null,null,null,""]
[null,"Philosophie",null,null,null,null,null,null,""]
[null,"Psychologie","W",null,2,2,null,null,2]
[null,"Astronomie",null,null,null,null,null,null,""]
[null,"Problemlösen mit CAS",null,null,null,null,null,null,""]
[null,"Darst. Geometrie",null,null,null,null,null,null,""]
[null,"Geologie ",null,null,null,null,null,null,""]
["Summen",null,null,null,{"$f":"SUM(E14:E49)","v":34},{"$f":"SUM(F14:F49)","v":34},32,32,42]
["* Bitte Zurodnung zu einem Aufgabenfeld (I, II, III) angeben.  ** Endgültige Festlegung Ende 3. Kurshalbjahr"]
[]
["Ich bestätige die Richtigkeit meiner Angaben"]
[]
["Schüler/in",null,null,"Erziehungsberechtigter"]

{"sheet":"Hilfe zum Ausfüllen","index":1,"n_rows":46,"n_cols":3,"rows_kept":46,"cut":false,"hidden":false,"merged":[[1,0,1,9]]}
[]
["Hilfe zum Ausfüllen des Formulars"]
[]
[]
["1.Schritt:"]
["Wähle nacheinander die drei Leistungsfächer. "]
["Dabei können nur Fächer gewählt werden, die"]
["grün unterlegt sind."]
[]
["Trage in das gewünschte Feld L ein "]
["oder wähle L im Drop-Down Menu"]
[]
["Nach der Wahl des ersten Leistungsfaches wird"]
["durch grünes Unterlegen angezeigt, welche "]
["weiteren Leistungsfächer wählbar sind."]
["Das Programm geht dabei nach der folgenden Regelung vor:"]
["\"Die ersten beiden Leistungsfächer sind aus D, M, FS und NW zu wählen, das dritte Fach ist aus dem Pfichtbereich frei wählbar."]
[]
[]
["2. Schritt:"]
["Nach der Wahl der Leistungsfächer werden die Basisfächer gewählt. Dabei gibt es Pflichbelegungen, die bereits vorgenommen sind."]
["Auf alle Fälle muss noch zwischen Musik und Bildender Kunst sowie zwischen Religion und Ethik sowie"]
["insgesamt entweder 2 NW und 1 FS oder 1 FS und NW gewählt werden."]
["Eine Wahl erfolgt durch eine Eintragung von B in das entsprechende Feld oder durch Wahl von B im Drop-Down-Menu"]
[]
["3. Schritt:"]
["Wird M oder D als Basisfach gewählt, so ist damit verbunden, dass diese Fächer im mündlichen Abitur gewählt werden müssen."]
["Dies trägt das Programm automatisch ein."]
["Alle weiteren Fächer (insgesamt 2) kann man so wählen, dass insgesamt alle drei Anforderungsbereiche abgedeckt sind (s. Leitfaden)."]
["Ein mündliches Prüfungsfach kann durch Eintragen des Buchstabens m in das Feld Prüfung erfolgen."]
[]
["4. Schritt:"]
["Nach der vollstädnigen Wahl (alle gewünschten Basisfächer, mündliche Prüfungen, Wahlfächer) kann durch Drücken des Buttons"]
["Prüfen getestet werden, ob eine korrekte Wahl stattgefunden hat."]
["Eine richtige Wahl wird dabei im Ergebnis grün angezeigt."]
["Sind Fehler aufgetreten, werden diese rot dargestellt."]
[]
["5. Schritt:"]
["Wahlfächer, die nur über 2 Halbjahre belegt werden, werden immer in JG 1 "]
["angezeigt. Dies kann manuell geändert werden."]
[]
["6. Schritt:"]
["Ein korrekt ausgefüllter Kurswahlbogen kann als pdf-File abgespeichert werden."]
[]
[]
["Beta - Version!",null,"Alle Angaben sind ohne Gewähr!"]